[Event "VII Open Internacional Quart de Poblet"]
[Site "Quart de Poblet, Spain"]
[Date "2019.08.09"]
[Round "7.5"]
[White "Balada Moreno, Jose Luis"]
[Black "Nieves Cabanes, Jose Manuel"]
[Result "0-1"]
[TimeControl "90m +30s por jugada"]
[WhiteFideId "2214962"]
[BlackFideId "22245715"]
[WhiteElo "2022"]
[BlackElo "2311"]

1. e4 {[%clk 01:30:53]} {[%emt 00:00:07]} e5 {[%clk 01:30:51]} {[%emt
00:00:33]} 2. Nf3 {[%clk 01:31:03]} {[%emt 00:00:03]} Nc6 {[%clk 01:31:15]}
{[%emt 00:00:04]} 3. Bc4 {[%clk 01:31:09]} {[%emt 00:00:19]} Bc5 {[%clk
01:31:33]} {[%emt 00:00:33]} 4. c3 {[%clk 01:31:18]} {[%emt 00:00:05]} Nf6
{[%clk 01:30:37]} {[%emt 00:01:22]} 5. d3 {[%clk 01:31:34]} {[%emt 00:00:34]}
a6 {[%clk 01:28:53]} {[%emt 00:01:54]} 6. Bb3 {[%clk 01:28:08]} {[%emt
00:04:05]} d6 {[%clk 01:27:49]} {[%emt 00:01:42]} 7. Nbd2 {[%clk 01:28:18]}
{[%emt 00:00:05]} Ba7 {[%clk 01:27:48]} {[%emt 00:00:32]} 8. Nf1 {[%clk
01:28:23]} {[%emt 00:00:21]} Be6 {[%clk 01:19:45]} {[%emt 00:08:32]} 9. Bc2
{[%clk 01:27:40]} {[%emt 00:01:13]} d5 {[%clk 01:15:45]} {[%emt 00:04:31]} 10.
Qe2 {[%clk 01:27:00]} {[%emt 00:01:11]} Ng4 {[%clk 01:13:07]} {[%emt 00:03:07]}
11. Ne3 {[%clk 01:24:52]} {[%emt 00:02:37]} Nxe3 {[%clk 01:10:42]} {[%emt
00:02:55]} 12. Bxe3 {[%clk 01:25:12]} {[%emt 00:00:17]} d4 {[%clk 01:09:30]}
{[%emt 00:01:36]} 13. Bd2 {[%clk 01:25:11]} {[%emt 00:00:30]} Bg4 {[%clk
01:06:04]} {[%emt 00:03:57]} 14. Bb3 {[%clk 01:13:43]} {[%emt 00:11:58]} Qf6
{[%clk 00:58:34]} {[%emt 00:08:02]} 15. h3 {[%clk 01:08:47]} {[%emt 00:05:23]}
Bd7 {[%clk 00:53:19]} {[%emt 00:05:49]} 16. O-O {[%clk 01:04:40]} {[%emt
00:04:44]} h6 {[%clk 00:52:28]} {[%emt 00:01:11]} 17. Nh2 {[%clk 00:59:51]}
{[%emt 00:05:20]} g5 {[%clk 00:46:37]} {[%emt 00:06:19]} 18. Qh5 {[%clk
00:57:29]} {[%emt 00:02:52]} Rh7 {[%clk 00:40:09]} {[%emt 00:07:00]} 19. Bd1
{[%clk 00:57:03]} {[%emt 00:00:53]} O-O-O {[%clk 00:37:37]} {[%emt 00:03:03]}
20. c4 {[%clk 00:57:19]} {[%emt 00:00:14]} Kb8 {[%clk 00:35:36]} {[%emt
00:02:31]} 21. Bg4 {[%clk 00:56:25]} {[%emt 00:01:24]} Be8 {[%clk 00:35:49]}
{[%emt 00:00:34]} 22. Bf5 {[%clk 00:56:44]} {[%emt 00:00:12]} Rh8 {[%clk
00:35:52]} {[%emt 00:00:10]} 23. Rfe1 {[%clk 00:54:21]} {[%emt 00:02:53]} Ne7
{[%clk 00:35:11]} {[%emt 00:01:11]} 24. Qf3 {[%clk 00:52:42]} {[%emt 00:02:08]}
h5 {[%clk 00:30:14]} {[%emt 00:05:27]} 25. g4 {[%clk 00:49:17]} {[%emt
00:03:55]} Qg7 {[%clk 00:27:05]} {[%emt 00:03:39]} 26. Kg2 {[%clk 00:47:50]}
{[%emt 00:01:57]} Rd6 {[%clk 00:24:59]} {[%emt 00:02:36]} 27. Rh1 {[%clk
00:44:40]} {[%emt 00:03:41]} Rdh6 {[%clk 00:23:37]} {[%emt 00:01:53]} 28. Rag1
{[%clk 00:39:33]} {[%emt 00:05:35]} f6 {[%clk 00:23:23]} {[%emt 00:00:45]} 29.
Kf1 {[%clk 00:38:52]} {[%emt 00:01:11]} hxg4 {[%clk 00:18:25]} {[%emt
00:05:29]} 30. Nxg4 {[%clk 00:36:02]} {[%emt 00:03:20]} Nxf5 {[%clk 00:15:42]}
{[%emt 00:03:11]} 31. Qxf5 {[%clk 00:35:55]} {[%emt 00:00:36]} Bd7 {[%clk
00:15:56]} {[%emt 00:00:21]} 32. Qf3 {[%clk 00:35:12]} {[%emt 00:01:10]} Rg6
{[%clk 00:15:50]} {[%emt 00:00:40]} 33. b4 {[%clk 00:32:46]} {[%emt 00:02:54]}
c5 {[%clk 00:12:29]} {[%emt 00:03:48]} 34. a3 {[%clk 00:31:00]} {[%emt
00:02:20]} Ka8 {[%clk 00:12:55]} {[%emt 00:00:03]} 35. Ke2 {[%clk 00:31:07]}
{[%emt 00:00:21]} Rf8 {[%clk 00:12:12]} {[%emt 00:01:13]} 36. Qg3 {[%clk
00:26:45]} {[%emt 00:05:02]} f5 {[%clk 00:09:24]} {[%emt 00:03:09]} 37. exf5
{[%clk 00:23:25]} {[%emt 00:03:58]} Rxf5 {[%clk 00:09:39]} {[%emt 00:00:06]} 38.
f3 {[%clk 00:23:37]} {[%emt 00:00:18]} Bc6 {[%clk 00:09:19]} {[%emt 00:00:53]}
39. Rf1 {[%clk 00:23:56]} {[%emt 00:00:15]} Bb8 {[%clk 00:07:41]} {[%emt
00:02:02]} 40. Qg2 {[%clk 00:23:48]} {[%emt 00:00:38]} Qf8 {[%clk 00:07:16]}
{[%emt 00:00:56]} 41. h4 {[%clk 00:22:52]} {[%emt 00:01:28]} gxh4 {[%clk
00:07:23]} {[%emt 00:00:24]} 42. Rxh4 {[%clk 00:23:06]} {[%emt 00:00:11]} Bd6
{[%clk 00:06:36]} {[%emt 00:01:20]} 43. Qh1 {[%clk 00:23:05]} {[%emt 00:00:28]}
Ka7 {[%clk 00:06:13]} {[%emt 00:00:56]} 44. Rh8 {[%clk 00:22:35]} {[%emt
00:00:58]} Qe7 {[%clk 00:06:13]} {[%emt 00:00:32]} 45. Qh7 {[%clk 00:21:33]}
{[%emt 00:01:31]} Qe6 {[%clk 00:06:16]} {[%emt 00:00:25]} 46. Qh3 {[%clk
00:17:29]} {[%emt 00:04:57]} e4 {[%clk 00:05:50]} {[%emt 00:00:34]} 47. Re1
{[%clk 00:08:36]} {[%emt 00:09:25]} Rxf3 {[%clk 00:05:46]} {[%emt 00:00:37]}
0-1

[Event "VII Open Internacional Quart de Poblet"]
[Site "Quart de Poblet, Spain"]
[Date "2019.08.09"]
[Round "7.7"]
[White "Bellver Gorshenin, Maxim"]
[Black "Nieves Cabanes, Javier"]
[Result "0-1"]
[TimeControl "90m +30s por jugada"]
[WhiteFideId "24538671"]
[BlackFideId "22245707"]
[WhiteElo "1681"]
[BlackElo "2211"]

1. e4 {[%clk 01:30:56]} {[%emt 00:00:05]} c5 {[%clk 01:30:42]} {[%emt
00:00:20]} 2. Nf3 {[%clk 01:31:04]} {[%emt 00:00:19]} e6 {[%clk 01:31:03]}
{[%emt 00:00:20]} 3. d4 {[%clk 01:31:10]} {[%emt 00:00:14]} cxd4 {[%clk
01:31:25]} {[%emt 00:00:11]} 4. Nxd4 {[%clk 01:31:21]} {[%emt 00:00:16]} Nc6
{[%clk 01:31:46]} {[%emt 00:00:13]} 5. Nxc6 {[%clk 01:30:43]} {[%emt 00:01:07]}
bxc6 {[%clk 01:31:52]} {[%emt 00:00:20]} 6. Be3 {[%clk 01:29:37]} {[%emt
00:01:38]} Nf6 {[%clk 01:29:33]} {[%emt 00:02:49]} 7. Nd2 {[%clk 01:25:34]}
{[%emt 00:04:35]} d5 {[%clk 01:27:30]} {[%emt 00:02:30]} 8. e5 {[%clk
01:21:22]} {[%emt 00:04:43]} Nd7 {[%clk 01:27:35]} {[%emt 00:00:25]} 9. Nf3
{[%clk 01:19:05]} {[%emt 00:02:49]} Qc7 {[%clk 01:26:09]} {[%emt 00:02:11]} 10.
Bf4 {[%clk 01:12:17]} {[%emt 00:06:59]} Rb8 {[%clk 01:25:50]} {[%emt 00:00:49]}
11. Qc1 {[%clk 00:59:09]} {[%emt 00:13:38]} Ba6 {[%clk 01:13:13]} {[%emt
00:13:07]} 12. b3 {[%clk 00:41:31]} {[%emt 00:18:08]} Qa5+ {[%clk 00:53:23]}
{[%emt 00:20:24]} 13. Bd2 {[%clk 00:31:47]} {[%emt 00:10:10]} Qb6 {[%clk
00:50:38]} {[%emt 00:03:15]} 14. Bxa6 {[%clk 00:25:55]} {[%emt 00:06:23]} Qxa6
{[%clk 00:51:02]} {[%emt 00:00:15]} 15. Qd1 {[%clk 00:24:42]} {[%emt 00:01:35]}
Ba3 {[%clk 00:43:49]} {[%emt 00:07:39]} 16. Bc1 {[%clk 00:19:17]} {[%emt
00:05:56]} Bb4+ {[%clk 00:37:57]} {[%emt 00:06:24]} 17. Bd2 {[%clk 00:18:10]}
{[%emt 00:01:35]} Bxd2+ {[%clk 00:29:45]} {[%emt 00:08:41]} 18. Qxd2 {[%clk
00:16:59]} {[%emt 00:01:43]} Nc5 {[%clk 00:29:11]} {[%emt 00:01:04]} 19. Qe2
{[%clk 00:09:07]} {[%emt 00:08:22]} Qa5+ {[%clk 00:29:32]} {[%emt 00:00:07]} 20.
Qd2 {[%clk 00:08:40]} {[%emt 00:00:57]} Qb5 {[%clk 00:28:54]} {[%emt 00:01:10]}
21. Nd4 {[%clk 00:08:05]} {[%emt 00:01:04]} Qb6 {[%clk 00:25:09]} {[%emt
00:04:16]} 22. O-O {[%clk 00:07:43]} {[%emt 00:00:49]} Ne4 {[%clk 00:24:52]}
{[%emt 00:00:51]} 23. Qe3 {[%clk 00:06:28]} {[%emt 00:01:44]} c5 {[%clk
00:23:19]} {[%emt 00:02:01]} 24. Ne2 {[%clk 00:05:16]} {[%emt 00:01:44]} f6
{[%clk 00:19:46]} {[%emt 00:04:02]} 25. f3 {[%clk 00:04:29]} {[%emt 00:01:18]}
Ng5 {[%clk 00:20:13]} {[%emt 00:00:04]} 26. exf6 {[%clk 00:04:17]} {[%emt
00:00:41]} gxf6 {[%clk 00:20:41]} {[%emt 00:00:04]} 27. h4 {[%clk 00:04:18]}
{[%emt 00:00:24]} Nf7 {[%clk 00:20:59]} {[%emt 00:00:24]} 28. Nf4 {[%clk
00:04:09]} {[%emt 00:00:27]} Ne5 {[%clk 00:17:11]} {[%emt 00:04:18]} 29. Nxe6
{[%clk 00:03:51]} {[%emt 00:00:49]} Qxe6 {[%clk 00:16:23]} {[%emt 00:01:18]} 30.
f4 {[%clk 00:03:24]} {[%emt 00:01:00]} O-O {[%clk 00:13:11]} {[%emt 00:04:14]}
31. fxe5 {[%clk 00:03:28]} {[%emt 00:00:04]} Qxe5 {[%clk 00:12:40]} {[%emt
00:00:50]} 32. Qxc5 {[%clk 00:02:35]} {[%emt 00:01:24]} Rbc8 {[%clk 00:12:52]}
{[%emt 00:00:15]} 33. Qf2 {[%clk 00:02:31]} {[%emt 00:00:35]} Qe4 {[%clk
00:12:06]} {[%emt 00:01:14]} 34. Rac1 {[%clk 00:02:01]} {[%emt 00:01:01]} Rc3
{[%clk 00:11:46]} {[%emt 00:00:50]} 35. Rfe1 {[%clk 00:01:49]} {[%emt
00:00:43]} Qg4 {[%clk 00:11:50]} {[%emt 00:00:25]} 36. Re3 {[%clk 00:01:43]}
{[%emt 00:00:40]} Rxe3 {[%clk 00:10:42]} {[%emt 00:01:33]} 37. Qxe3 {[%clk
00:02:09]} {[%emt 00:00:09]} d4 {[%clk 00:10:52]} {[%emt 00:00:20]} 38. Qf2
{[%clk 00:02:17]} {[%emt 00:00:18]} Rf7 {[%clk 00:10:09]} {[%emt 00:01:12]} 39.
g3 {[%clk 00:02:23]} {[%emt 00:00:25]} Rc7 {[%clk 00:07:44]} {[%emt 00:03:02]}
40. Qe1 {[%clk 00:01:26]} {[%emt 00:01:20]} Kf7 {[%clk 00:07:45]} {[%emt
00:00:38]} 41. Kh2 {[%clk 00:01:42]} {[%emt 00:00:05]} Re7 {[%clk 00:07:23]}
{[%emt 00:00:52]} 42. Qf1 {[%clk 00:01:46]} {[%emt 00:00:26]} Re2+ {[%clk
00:07:12]} {[%emt 00:01:10]} 43. Kh1 {[%clk 00:01:57]} {[%emt 00:00:04]} Qe4+
{[%clk 00:07:03]} {[%emt 00:00:39]} 44. Kg1 {[%clk 00:02:09]} {[%emt 00:00:15]}
Qe3+ {[%clk 00:06:59]} {[%emt 00:00:26]} 45. Kh1 {[%clk 00:02:22]} {[%emt
00:00:14]} Qe4+ {[%clk 00:04:42]} {[%emt 00:02:50]} 46. Kg1 {[%clk 00:02:46]}
{[%emt 00:00:06]} Kg7 {[%clk 00:04:02]} {[%emt 00:01:06]} 47. a4 {[%clk
00:00:59]} {[%emt 00:02:17]} Qe3+ {[%clk 00:03:52]} {[%emt 00:00:41]} 48. Kh1
{[%clk 00:01:19]} {[%emt 00:00:34]} Rf2 {[%clk 00:04:03]} {[%emt 00:00:04]} 49.
Qd1 {[%clk 00:01:12]} {[%emt 00:00:26]} Qe4+ {[%clk 00:03:38]} {[%emt
00:00:58]} 0-1

[Event "VII Open Internacional Quart de Poblet"]
[Site "Quart de Poblet, Spain"]
[Date "2019.08.09"]
[Round "7.8"]
[White "Sanchez Sabater, Manuel Jose"]
[Black "Gonzalez Aguirre, Luis"]
[Result "0-1"]
[TimeControl "90m +30s por jugada"]
[WhiteFideId "24545210"]
[BlackFideId "2202000"]
[WhiteElo "1498"]
[BlackElo "2112"]

1. e4 {[%clk 01:30:55]} {[%emt 00:00:05]} c6 {[%clk 01:30:36]} {[%emt
00:00:32]} 2. d4 {[%clk 01:31:14]} d5 {[%clk 01:30:49]} {[%emt 00:00:34]} 3. e5
{[%clk 01:31:31]} {[%emt 00:00:04]} c5 {[%clk 01:29:24]} {[%emt 00:01:49]} 4.
dxc5 {[%clk 01:31:34]} {[%emt 00:00:39]} Nc6 {[%clk 01:29:05]} {[%emt
00:00:40]} 5. a3 {[%clk 01:31:25]} {[%emt 00:01:10]} Nxe5 {[%clk 01:24:10]}
{[%emt 00:05:12]} 6. b4 {[%clk 01:28:56]} {[%emt 00:02:36]} e6 {[%clk
01:21:18]} {[%emt 00:03:23]} 7. Bb2 {[%clk 01:28:08]} {[%emt 00:01:54]} Nc6
{[%clk 01:20:44]} {[%emt 00:00:51]} 8. Nf3 {[%clk 01:28:12]} {[%emt 00:00:22]}
Nf6 {[%clk 01:20:50]} {[%emt 00:00:05]} 9. Bd3 {[%clk 01:26:40]} {[%emt
00:02:08]} Be7 {[%clk 01:21:05]} {[%emt 00:00:10]} 10. O-O {[%clk 01:25:53]}
{[%emt 00:01:21]} O-O {[%clk 01:21:32]} {[%emt 00:00:03]} 11. Nc3 {[%clk
01:24:03]} {[%emt 00:02:15]} e5 {[%clk 01:17:15]} {[%emt 00:04:52]} 12. Bb5
{[%clk 01:18:58]} {[%emt 00:05:32]} e4 {[%clk 01:08:08]} {[%emt 00:09:35]} 13.
Nd4 {[%clk 01:10:52]} {[%emt 00:08:39]} Qc7 {[%clk 01:05:02]} {[%emt 00:03:32]}
14. Be2 {[%clk 01:02:18]} {[%emt 00:09:04]} Rd8 {[%clk 00:58:55]} {[%emt
00:06:40]} 15. Ncb5 {[%clk 01:01:38]} {[%emt 00:01:07]} Qf4 {[%clk 00:56:18]}
{[%emt 00:03:06]} 16. Nxc6 {[%clk 00:58:10]} {[%emt 00:03:59]} bxc6 {[%clk
00:56:23]} {[%emt 00:00:24]} 17. Nd4 {[%clk 00:56:20]} {[%emt 00:02:22]} Bd7
{[%clk 00:54:00]} {[%emt 00:02:56]} 18. Bc1 {[%clk 00:49:26]} {[%emt 00:07:21]}
Qc7 {[%clk 00:47:49]} {[%emt 00:06:42]} 19. a4 {[%clk 00:46:47]} {[%emt
00:03:07]} Qc8 {[%clk 00:40:55]} {[%emt 00:07:24]} 20. Ra3 {[%clk 00:46:18]}
{[%emt 00:00:58]} a5 {[%clk 00:40:16]} {[%emt 00:01:09]} 21. Rg3 {[%clk
00:37:07]} {[%emt 00:10:07]} axb4 {[%clk 00:39:40]} {[%emt 00:00:40]} 22. Bh6
{[%clk 00:37:18]} {[%emt 00:00:36]} g6 {[%clk 00:38:32]} {[%emt 00:01:21]} 23.
Bg5 {[%clk 00:36:48]} {[%emt 00:00:59]} Rxa4 {[%clk 00:36:29]} {[%emt
00:03:11]} 24. c3 {[%clk 00:35:56]} {[%emt 00:00:45]} Qa8 {[%clk 00:33:13]}
{[%emt 00:03:45]} 25. Bxf6 {[%clk 00:34:31]} {[%emt 00:02:19]} Bxf6 {[%clk
00:33:40]} {[%emt 00:00:03]} 26. Bg4 {[%clk 00:34:03]} {[%emt 00:00:34]} bxc3
{[%clk 00:32:48]} {[%emt 00:01:22]} 27. Bxd7 {[%clk 00:32:48]} {[%emt
00:01:45]} Rxd4 {[%emt 00:03:14]} 0-1

[Event "VII Open Internacional Quart de Poblet"]
[Site "Quart de Poblet, Spain"]
[Date "2019.08.09"]
[Round "7.9"]
[White "Movsisyan, Tigran"]
[Black "Garcia Diaz, Alejandro"]
[Result "0-1"]
[TimeControl "90m +30s por jugada"]
[WhiteFideId "24581364"]
[BlackFideId "22202463"]
[WhiteElo "1594"]
[BlackElo "1806"]

1. c4 {[%clk 01:30:59]} Nf6 {[%clk 01:30:44]} {[%emt 00:00:16]} 2. Nc3 {[%clk
01:31:18]} {[%emt 00:00:10]} e5 {[%clk 01:30:35]} {[%emt 00:00:40]} 3. g3
{[%clk 01:31:41]} {[%emt 00:00:07]} d5 {[%clk 01:29:31]} {[%emt 00:01:34]} 4.
cxd5 {[%clk 01:27:18]} {[%emt 00:04:53]} Nxd5 {[%clk 01:29:44]} {[%emt
00:00:17]} 5. Bg2 {[%clk 01:26:38]} {[%emt 00:01:10]} Nxc3 {[%clk 01:26:56]}
{[%emt 00:03:18]} 6. bxc3 {[%clk 01:26:54]} {[%emt 00:00:14]} Nd7 {[%clk
01:24:29]} {[%emt 00:02:58]} 7. d4 {[%clk 01:15:18]} {[%emt 00:12:05]} Bd6
{[%clk 01:21:44]} {[%emt 00:03:14]} 8. e3 {[%clk 01:11:28]} {[%emt 00:04:20]}
O-O {[%clk 01:20:41]} {[%emt 00:01:33]} 9. Ne2 {[%clk 01:11:20]} {[%emt
00:00:38]} Nf6 {[%clk 01:19:37]} {[%emt 00:01:34]} 10. O-O {[%clk 01:10:16]}
{[%emt 00:01:34]} c6 {[%clk 01:19:12]} {[%emt 00:00:56]} 11. Qc2 {[%clk
01:09:01]} {[%emt 00:01:45]} Re8 {[%clk 01:18:24]} {[%emt 00:01:18]} 12. Rd1
{[%clk 00:57:41]} {[%emt 00:11:49]} e4 {[%clk 01:16:23]} {[%emt 00:02:31]} 13.
h3 {[%clk 00:55:33]} {[%emt 00:02:38]} Bf5 {[%clk 01:13:41]} {[%emt 00:03:12]}
14. c4 {[%clk 00:53:04]} {[%emt 00:02:59]} Rc8 {[%clk 01:07:55]} {[%emt
00:06:16]} 15. Qa4 {[%clk 00:42:28]} {[%emt 00:11:05]} a6 {[%clk 00:59:27]}
{[%emt 00:08:59]} 16. Bd2 {[%clk 00:40:48]} {[%emt 00:02:09]} Qd7 {[%clk
00:52:54]} {[%emt 00:07:04]} 17. Kh2 {[%clk 00:35:37]} {[%emt 00:05:40]} h5
{[%clk 00:52:57]} {[%emt 00:00:28]} 18. c5 {[%clk 00:31:33]} {[%emt 00:04:33]}
Bb8 {[%clk 00:52:53]} {[%emt 00:00:35]} 19. Rdb1 {[%clk 00:27:38]} {[%emt
00:04:25]} h4 {[%clk 00:48:12]} {[%emt 00:05:10]} 20. Qb3 {[%clk 00:27:10]}
{[%emt 00:00:59]} hxg3+ {[%clk 00:47:34]} {[%emt 00:01:08]} 21. fxg3 {[%clk
00:27:02]} {[%emt 00:00:39]} Re7 {[%clk 00:43:02]} {[%emt 00:05:01]} 22. Rb2
{[%clk 00:20:56]} {[%emt 00:06:36]} g5 {[%clk 00:35:37]} {[%emt 00:07:55]} 23.
Rab1 {[%clk 00:20:37]} {[%emt 00:00:50]} Qe8 {[%clk 00:32:58]} {[%emt
00:03:09]} 24. Qc4 {[%clk 00:15:05]} {[%emt 00:06:03]} Rcc7 {[%clk 00:31:02]}
{[%emt 00:02:26]} 25. Ba5 {[%clk 00:15:28]} {[%emt 00:00:07]} Rcd7 {[%clk
00:31:13]} {[%emt 00:00:19]} 26. Qc2 {[%clk 00:11:55]} {[%emt 00:04:02]} Kg7
{[%clk 00:28:45]} {[%emt 00:02:58]} 27. Rf1 {[%clk 00:07:42]} {[%emt 00:04:43]}
Be6 {[%clk 00:23:32]} {[%emt 00:05:44]} 28. Bc3 {[%clk 00:06:40]} {[%emt
00:01:31]} Bd5 {[%clk 00:22:19]} {[%emt 00:01:44]} 29. Nc1 {[%clk 00:03:29]}
{[%emt 00:03:42]} Qh8 {[%clk 00:21:05]} {[%emt 00:01:43]} 30. Qe2 {[%clk
00:03:13]} {[%emt 00:00:46]} Qh4 {[%clk 00:15:49]} {[%emt 00:05:45]} 31. Be1
{[%clk 00:03:17]} {[%emt 00:00:27]} Nh5 {[%clk 00:14:34]} {[%emt 00:01:46]} 32.
Qg4 {[%clk 00:03:06]} {[%emt 00:00:40]} Qxg4 {[%clk 00:12:03]} {[%emt
00:03:01]} 33. hxg4 {[%clk 00:03:35]} Nf6 {[%clk 00:12:23]} {[%emt 00:00:09]}
34. Bh3 {[%clk 00:03:38]} {[%emt 00:00:28]} Rd8 {[%clk 00:12:28]} {[%emt
00:00:26]} 35. Rbf2 {[%clk 00:02:48]} {[%emt 00:01:19]} Re6 {[%clk 00:12:09]}
{[%emt 00:00:49]} 36. Bc3 {[%clk 00:02:41]} {[%emt 00:00:38]} Rh8 {[%clk
00:11:12]} {[%emt 00:01:26]} 37. Kg2 {[%clk 00:02:55]} {[%emt 00:00:16]} Rh6
{[%clk 00:10:15]} {[%emt 00:01:28]} 38. Rf5 {[%clk 00:02:26]} {[%emt 00:00:58]}
Rg6 {[%clk 00:09:53]} {[%emt 00:00:51]} 39. Ba5 {[%clk 00:01:51]} {[%emt
00:01:06]} Re8 {[%clk 00:09:40]} {[%emt 00:00:43]} 40. Nb3 {[%clk 00:01:18]}
{[%emt 00:01:04]} Be6 {[%clk 00:09:37]} {[%emt 00:00:32]} 41. R5f2 {[%clk
00:01:47]} {[%emt 00:00:01]} Rh8 {[%clk 00:09:35]} {[%emt 00:00:31]} 42. Bc3
{[%clk 00:01:46]} {[%emt 00:00:31]} Nd5 {[%clk 00:09:40]} {[%emt 00:00:25]} 43.
Bd2 {[%clk 00:00:37]} {[%emt 00:01:39]} Rgh6 {[%clk 00:10:05]} {[%emt
00:00:05]} 44. Rh1 {[%clk 00:00:32]} {[%emt 00:00:35]} Bxg4 {[%clk 00:09:52]}
{[%emt 00:00:42]} 45. Bxg4 {[%clk 00:00:50]} {[%emt 00:00:12]} Rxh1 {[%clk
00:10:15]} {[%emt 00:00:07]} 46. Rf5 {[%clk 00:00:53]} {[%emt 00:00:28]} R8h2#
{[%emt 00:00:17]} 0-1

[Event "VII Open Internacional Quart de Poblet"]
[Site "Quart de Poblet, Spain"]
[Date "2019.08.10"]
[Round "8.1"]
[White "Galvan Cipriani, Viviana"]
[Black "Cruz Lledo, Pablo"]
[Result "0-1"]
[TimeControl "90m +30s por jugada"]
[WhiteFideId "32041144"]
[BlackFideId "2297361"]
[WhiteElo "1941"]
[BlackElo "2445"]

1. c4 {[%clk 01:30:58]} {[%emt 00:00:07]} g6 {[%clk 01:28:50]} {[%emt
00:02:07]} 2. Nc3 {[%clk 01:31:10]} {[%emt 00:00:18]} Bg7 {[%clk 01:29:12]}
{[%emt 00:00:08]} 3. g3 {[%clk 01:31:24]} {[%emt 00:00:16]} e6 {[%clk
01:28:53]} {[%emt 00:00:49]} 4. Bg2 {[%clk 01:31:32]} {[%emt 00:00:21]} Ne7
{[%clk 01:29:17]} {[%emt 00:00:07]} 5. e3 {[%clk 01:27:38]} {[%emt 00:04:27]}
O-O {[%clk 01:29:34]} {[%emt 00:00:08]} 6. Nge2 {[%clk 01:27:21]} {[%emt
00:00:48]} d5 {[%clk 01:28:31]} {[%emt 00:03:00]} 7. cxd5 {[%clk 01:25:22]}
{[%emt 00:01:07]} exd5 {[%clk 01:25:06]} {[%emt 00:03:51]} 8. d4 {[%clk
01:25:02]} {[%emt 00:00:50]} c6 {[%clk 01:24:42]} {[%emt 00:00:53]} 9. O-O
{[%clk 01:24:04]} {[%emt 00:01:29]} Nf5 {[%clk 01:24:50]} {[%emt 00:00:21]} 10.
b4 {[%clk 01:22:15]} {[%emt 00:02:19]} Nd6 {[%clk 01:24:50]} {[%emt 00:00:30]}
11. Nf4 {[%clk 01:22:15]} {[%emt 00:00:36]} Nd7 {[%clk 01:22:24]} {[%emt
00:02:51]} 12. a4 {[%clk 01:18:19]} {[%emt 00:04:26]} a6 {[%clk 01:22:22]}
{[%emt 00:00:36]} 13. Rb1 {[%clk 01:17:00]} {[%emt 00:01:45]} Nb6 {[%clk
01:19:20]} {[%emt 00:03:36]} 14. b5 {[%clk 01:11:26]} {[%emt 00:06:04]} Bf5
{[%clk 01:19:26]} {[%emt 00:00:23]} 15. Rb3 {[%clk 01:09:22]} {[%emt 00:02:34]}
axb5 {[%clk 01:18:17]} {[%emt 00:01:35]} 16. axb5 {[%clk 01:09:32]} {[%emt
00:00:19]} Nbc4 {[%clk 01:18:22]} {[%emt 00:00:30]} 17. bxc6 {[%clk 01:05:04]}
{[%emt 00:04:53]} bxc6 {[%clk 01:18:42]} {[%emt 00:00:11]} 18. Nd3 {[%clk
01:01:05]} {[%emt 00:04:29]} h5 {[%clk 01:09:05]} {[%emt 00:10:07]} 19. Nc5
{[%clk 00:47:55]} {[%emt 00:13:39]} Re8 {[%clk 01:09:02]} {[%emt 00:00:38]} 20.
Bd2 {[%clk 00:39:06]} {[%emt 00:09:15]} Bf8 {[%clk 01:03:33]} {[%emt 00:05:59]}
21. N3a4 {[%clk 00:36:49]} {[%emt 00:02:51]} Ne4 {[%clk 00:51:07]} {[%emt
00:12:52]} 22. Bb4 {[%clk 00:29:41]} {[%emt 00:07:43]} Nxc5 {[%clk 00:49:43]}
{[%emt 00:01:53]} 23. Nxc5 {[%clk 00:29:51]} {[%emt 00:00:17]} Ra2 {[%clk
00:49:19]} {[%emt 00:00:54]} 24. Nd3 {[%clk 00:27:15]} {[%emt 00:03:07]} Rxe3
{[%clk 00:38:07]} {[%emt 00:11:42]} 25. Qb1 {[%clk 00:10:53]} {[%emt 00:16:51]}
Rxd3 {[%clk 00:38:04]} {[%emt 00:00:36]} 26. Qxa2 {[%clk 00:09:37]} {[%emt
00:01:43]} Rxb3 {[%clk 00:38:23]} {[%emt 00:00:11]} 27. Qxb3 {[%clk 00:08:57]}
{[%emt 00:01:10]} Qb6 {[%clk 00:38:23]} {[%emt 00:00:29]} 28. Ra1 {[%clk
00:05:48]} {[%emt 00:03:40]} Qxb4 {[%clk 00:38:13]} {[%emt 00:00:40]} 29. Qxb4
{[%clk 00:05:20]} {[%emt 00:00:59]} Bxb4 {[%clk 00:38:25]} {[%emt 00:00:17]} 30.
Bf1 {[%clk 00:04:45]} {[%emt 00:01:05]} Nd2 {[%clk 00:37:44]} {[%emt 00:01:12]}
31. Rc1 {[%clk 00:03:22]} {[%emt 00:01:55]} Nf3+ {[%clk 00:37:35]} {[%emt
00:00:36]} 32. Kh1 {[%clk 00:02:29]} {[%emt 00:01:26]} Nxd4 {[%clk 00:37:52]}
{[%emt 00:00:11]} 33. Ba6 {[%clk 00:02:11]} {[%emt 00:00:47]} c5 {[%clk
00:37:57]} {[%emt 00:00:26]} 34. Kg2 {[%clk 00:01:31]} {[%emt 00:01:09]} Be4+
{[%clk 00:38:13]} {[%emt 00:00:14]} 35. Kf1 {[%clk 00:01:03]} {[%emt 00:01:03]}
c4 {[%clk 00:38:29]} {[%emt 00:00:14]} 36. Bb7 {[%clk 00:00:33]} {[%emt
00:00:56]} c3 {[%clk 00:38:20]} {[%emt 00:00:39]} 37. Ba6 {[%clk 00:00:33]}
{[%emt 00:00:30]} c2 {[%clk 00:38:40]} {[%emt 00:00:10]} 38. Bb7 {[%clk
00:00:33]} {[%emt 00:00:30]} Ba3 {[%emt 00:01:40]} 0-1